bitfinex-derivatives/quotes_ETHF0:USTF0_20250530
["timestamp","ask_amount","ask_price","bid_price","bid_amount"]
[1748571640111,0.00569167,2622.0,2621.8,1.2747]
[1748571641512,1.07448804,2621.9,2621.8,1.2747]
[1748571641708,0.00569167,2622.0,2621.8,1.2747]
[1748571642918,0.00569167,2622.0,2621.8,10.5117]
[1748571643505,0.1904,2622.4,2621.8,10.5117]
[1748571643813,0.1904,2622.4,2622.3,3.2078]
[1748571644114,4.237,2623.2,2622.3,3.2078]
[1748571644429,1.07475707,2623.1,2622.9,3.2078]
[1748571644610,1.07475707,2623.0,2622.9,3.2078]
[1748571645008,2.41365707,2623.4,2622.9,3.2078]
[1748571645214,2.41365707,2623.4,2623.0,1.3029]
[1748571645215,1.07475707,2623.3,2623.0,1.3029]
[1748571645416,5.5759,2623.2,2622.7,0.00571766]
[1748571645714,1.26505707,2623.1,2622.7,0.00571766]
[1748571645914,1.07475707,2623.0,2622.7,1.30861766]
[1748571647222,1.07475707,2623.0,2622.7,0.00571766]
[1748571647515,1.8575,2622.9,2622.7,0.00571766]
[1748571647713,8.51955707,2622.8,2622.7,0.00571766]
[1748571647912,9.75345707,2622.8,2622.7,0.00571766]
[1748571648114,14.75345707,2622.8,2622.7,0.00571766]
[1748571648314,13.6787,2622.8,2622.7,0.00571766]
[1748571648616,13.6787,2622.8,2622.1,3.2078]
[1748571648617,14.75454407,2622.8,2622.1,3.2078]
[1748571648816,1.07584407,2622.7,2622.1,3.2078]
[1748571649020,1.2339,2622.6,2622.1,3.2078]
[1748571649319,1.07584407,2622.5,2622.1,3.2078]
[1748571649517,5.4699,2622.4,2622.1,3.2078]
[1748571649709,1.07584407,2622.3,2622.1,3.2078]
[1748571649916,1.2339,2622.2,2622.1,3.2078]
[1748571650107,2.30974407,2622.2,2622.1,3.2078]
[1748571650915,7.30974407,2622.2,2622.0,0.00571766]
[1748571651117,1.07584407,2622.1,2622.0,0.00571766]
[1748571651421,2.33094407,2622.1,2622.0,0.00571766]
[1748571651716,7.99494407,2622.1,2622.0,0.00571766]
[1748571652416,7.99484959,2622.1,2622.0,0.00571766]
[1748571652820,7.99484959,2622.1,2621.1,3.2078]
[1748571653016,3.2078,2621.6,2620.7,5.1648]
[1748571653318,7.17954959,2621.5,2620.7,5.1648]
[1748571653521,1.07574959,2621.4,2620.7,5.1648]
[1748571653826,2.39064959,2621.3,2621.0,3.2078]
[1748571654218,1.07574959,2621.3,2621.0,3.2078]
[1748571654527,4.237,2621.6,2621.1,1.2675]
[1748571654715,1.07577565,2621.5,2621.3,3.2078]
[1748571654916,4.237,2621.7,2621.3,3.2078]
[1748571655109,2.39065207,2621.6,2621.3,3.2078]
[1748571655318,1.3149,2621.6,2621.3,3.2078]
[1748571655823,1.07560515,2621.5,2621.3,3.2078]
[1748571656020,1.3149,2621.6,2621.3,3.2078]
[1748571656723,4.237,2621.7,2621.3,3.2078]
[1748571657023,1.07544132,2621.6,2621.4,1.2554]
[1748571657514,4.237,2621.7,2621.4,1.2554]
[1748571658016,1.07536842,2621.6,2621.4,1.2554]
[1748571658221,4.237,2621.7,2621.4,1.2554]
[1748571658520,1.07527459,2621.6,2621.4,1.2554]
[1748571658719,1.07527459,2621.6,2621.3,3.2078]
[1748571658720,4.237,2621.7,2621.3,3.2078]
[1748571658921,2.35976653,2621.6,2621.3,3.2078]
[1748571659222,1.2845,2621.6,2621.3,3.2078]
[1748571659623,5.5215,2621.6,2621.3,3.2078]
[1748571660920,1.68218957,2621.5,2621.0,3.2078]
[1748571661125,1.2889,2621.4,2621.0,3.2078]
[1748571661330,1.2889,2621.4,2621.1,1.2884]
[1748571661619,7.4448,2621.6,2621.1,1.2884]
[1748571662122,7.4448,2621.6,2620.8,0.00571766]
[1748571662123,2.36389242,2621.5,2620.8,0.00571766]
[1748571662329,1.68699242,2621.4,2620.8,1.29411766]
[1748571662526,1.2366,2621.3,2620.8,1.29411766]
[1748571663223,1.2191,2621.4,2621.0,3.2078]
[1748571663429,3.2078,2621.6,2621.1,1.2946]
[1748571663630,4.221,2621.7,2621.3,3.2078]
[1748571663927,4.221,2621.7,2621.4,1.2946]
[1748571664126,0.627,2622.0,2621.6,3.2078]
[1748571664328,4.221,2622.1,2621.9,3.2078]
[1748571664732,4.221,2622.1,2621.6,4.5024]
[1748571665031,1.2366,2622.0,2621.6,4.5024]
[1748571665825,1.2366,2622.0,2621.7,1.2506]
[1748571666231,1.2366,2622.0,2621.6,3.2078]
[1748571667731,4.22,2622.0,2621.7,1.2506]
[1748571668629,4.22,2622.0,2621.6,3.2078]
[1748571668838,1.2781,2621.9,2621.6,3.2078]
[1748571669126,4.22,2622.0,2621.6,3.2078]
[1748571669335,4.22,2622.0,2621.7,1.3464]
[1748571669928,1.9444,2622.2,2621.7,1.3464]
[1748571670234,4.22,2622.0,2621.9,3.2078]
[1748571670625,5.29425697,2622.0,2621.9,3.2078]
[1748571671126,4.22,2622.0,2621.9,3.2078]
[1748571671328,5.29410667,2622.0,2621.9,3.2078]
[1748571671533,1.07410667,2622.0,2621.9,3.2078]
[1748571671728,4.22,2622.1,2621.9,3.2078]
[1748571672031,4.22,2622.1,2622.0,1.2858]
[1748571672228,5.29425043,2622.1,2622.0,1.2858]
[1748571672824,0.6663,2622.2,2622.0,1.2858]
[1748571673229,1.8882,2622.2,2622.0,1.2858]
[1748571673731,1.8882,2622.2,2621.9,3.2078]
[1748571674233,1.07477717,2622.1,2621.9,3.2078]
[1748571674427,1.8882,2622.2,2621.9,3.2078]
[1748571674732,1.07491436,2622.1,2621.9,3.2078]
[1748571674932,0.6663,2622.2,2621.9,3.2078]
[1748571675128,1.07485628,2622.1,2621.9,3.2078]
[1748571675330,0.6663,2622.2,2622.0,1.2963]
[1748571675531,0.6663,2622.2,2621.9,3.2078]
[1748571675532,1.07556782,2622.1,2621.9,3.2078]
[1748571675734,1.988,2622.2,2621.9,3.2078]
[1748571675937,1.07558618,2622.1,2621.9,3.2078]
[1748571676129,1.07626289,2622.0,2621.9,3.2078]
[1748571677533,1.26686289,2622.0,2621.9,3.2078]
[1748571680542,1.26812288,2622.0,2621.9,3.2078]
[1748571681041,0.1906,2622.0,2621.9,3.2078]
[1748571684444,0.1906,2622.0,2621.9,8.2078]
[1748571687441,0.1906,2622.0,2621.9,3.2078]
[1748571693443,1.26985305,2622.0,2621.9,3.2078]
[1748571697448,1.27032627,2622.0,2621.9,3.2078]
[1748571697651,1.27032627,2622.0,2620.4,3.7504144]
[1748571697652,6.27032627,2622.0,2621.5,3.2078]
[1748571697850,10.37172627,2621.9,2621.5,3.2078]
[1748571698058,1.07972627,2621.8,2621.5,3.2078]
[1748571698356,1.9198,2621.7,2621.5,3.2078]
[1748571698551,1.07972627,2621.6,2621.5,3.2078]
[1748571698860,2.33282627,2621.6,2621.5,3.2078]
[1748571699847,10.54062627,2621.6,2620.8,0.00571766]
[1748571700151,5.25772627,2621.5,2620.8,0.00571766]
[1748571700351,2.30042627,2621.4,2620.8,0.00571766]
[1748571700544,1.07972627,2621.3,2620.8,0.00571766]
[1748571700744,2.30042627,2621.2,2620.8,0.00571766]
[1748571701049,1.07972627,2621.1,2620.8,1.27781766]
[1748571701248,1.07972627,2621.0,2620.8,1.27781766]
[1748571701463,1.07972627,2620.9,2620.8,1.27781766]
[1748571701676,1.07972627,2620.9,2620.8,0.00571766]
[1748571702174,2.34502627,2620.9,2620.8,0.00571766]
[1748571702860,1.07972627,2620.9,2620.8,0.00571766]
[1748571703354,0.6541,2621.0,2620.8,1.22091766]
[1748571705086,1.07557655,2620.9,2620.8,0.00571766]
[1748571705381,0.6541,2621.0,2620.8,0.00571766]
[1748571705578,1.3461,2620.9,2620.8,0.00571766]
[1748571705975,2.42132028,2620.9,2620.8,0.00571766]
[1748571707380,5.5251,2620.9,2620.8,0.00571766]
[1748571708780,6.59928229,2620.9,2620.8,0.00571766]
[1748571709288,9.80708229,2620.9,2620.8,0.00571766]
[1748571709588,10.10198912,2620.9,2620.8,0.00571766]
[1748571709881,15.10052406,2620.9,2620.0,3.2078]
[1748571710083,1.07271723,2620.8,2620.0,3.2078]
[1748571710283,1.2235,2620.7,2620.0,3.2078]
[1748571710579,1.07271723,2620.6,2620.0,3.2078]
[1748571710785,5.4025,2620.5,2620.0,3.21351766]
[1748571711992,4.179,2620.6,2620.3,3.2078]
[1748571712193,4.802,2620.7,2620.3,3.2078]
[1748571712490,4.802,2620.7,2620.4,1.3316]
[1748571712682,1.2492,2620.6,2620.4,1.3316]
[1748571712875,1.2492,2620.6,2620.3,3.2078]
[1748571713478,1.2492,2620.6,2620.0,3.21351766]
[1748571717277,1.2492,2620.6,2620.1,1.3472]
[1748571717561,1.2492,2620.6,2620.3,3.2078]
[1748571718470,1.2492,2620.6,2620.0,3.21351766]
[1748571718669,1.2492,2620.6,2620.1,1.244]
[1748571720564,1.2492,2620.6,2620.3,3.2078]
[1748571720866,4.18,2620.6,2620.4,1.2731]
[1748571721661,4.18,2620.6,2620.3,3.2078]
[1748571721870,4.18,2620.6,2620.1,0.6548]
[1748571721871,1.8858,2620.5,2620.1,0.6548]
[1748571722070,1.8858,2620.5,2620.1,1.9279]
[1748571722368,1.8858,2620.5,2620.0,3.21351766]
[1748571722566,1.07232808,2620.4,2620.0,3.21351766]
[1748571722763,1.2228,2620.4,2620.0,3.21351766]
[1748571723072,1.68315397,2620.3,2620.0,0.00571766]
[1748571723366,3.2078,2620.1,2620.0,0.00571766]
[1748571723572,4.28015397,2620.1,2620.0,0.00571766]
[1748571723767,10.60485397,2620.1,2619.4,3.2078]
[1748571724064,1.68355397,2620.0,2619.4,3.2078]
[1748571724270,2.39705397,2619.9,2619.4,3.2078]
[1748571724572,5.24935397,2619.8,2619.4,3.2078]
[1748571724767,2.39705397,2619.7,2619.4,3.2078]
[1748571725067,0.6711,2619.6,2619.4,3.2078]
[1748571727368,1.07445421,2619.5,2619.4,3.2078]
[1748571727562,1.2565,2619.5,2619.4,3.2078]
[1748571728067,2.33096128,2619.5,2619.4,3.2078]
[1748571728263,2.52176128,2619.5,2619.4,3.2078]
[1748571728462,1.26526128,2619.5,2619.4,3.2078]
[1748571728879,1.26526128,2619.5,2619.3,0.00571766]
[1748571729072,1.07446128,2619.4,2619.3,0.00571766]
[1748571729274,1.07487438,2619.4,2619.3,0.00571766]
[1748571729666,0.1908,2619.5,2619.3,0.00571766]
[1748571729875,0.1908,2619.5,2619.4,3.2078]
[1748571730075,0.1908,2619.5,2619.4,4.4402]
[1748571730282,1.26533673,2619.5,2619.4,4.4402]
[1748571732867,0.1908,2619.5,2619.4,4.4402]
[1748571733069,0.1908,2619.5,2619.4,10.0776]
[1748571736172,0.1908,2619.5,2619.4,5.0776]
[1748571736374,0.1908,2619.5,2619.4,10.0776]
[1748571738679,0.1908,2619.5,2619.4,10.7776]
[1748571741777,0.1908,2619.5,2619.4,5.7776]
[1748571741980,0.1908,2619.5,2619.4,5.0776]
[1748571742470,0.1908,2619.5,2619.4,4.4402]
[1748571744076,1.26754472,2619.5,2619.4,3.2078]
[1748571745475,1.26754472,2619.5,2619.3,0.00571766]
[1748571745676,2.37624472,2619.4,2619.3,0.00571766]
[1748571745875,1.2995,2619.4,2619.3,0.00571766]
[1748571746079,2.37633299,2619.4,2619.3,0.00571766]
[1748571748384,2.56713299,2619.4,2619.3,0.00571766]
[1748571750087,7.56675351,2619.4,2619.3,0.00571766]
[1748571750384,7.56675351,2619.4,2618.7,3.2078]
[1748571750587,1.70735351,2619.3,2618.7,3.2078]
[1748571750782,5.57985351,2619.2,2618.4,1.2827]
[1748571750978,5.90595351,2619.1,2618.4,1.2827]
[1748571751181,5.90595351,2619.1,2618.5,0.00571766]
[1748571751182,2.37205351,2619.0,2618.5,0.00571766]
[1748571751376,3.2078,2618.6,2618.5,0.00571766]
[1748571751576,4.179,2618.7,2618.5,0.00571766]
[1748571751780,1.07645351,2618.6,2618.5,0.00571766]
[1748571751981,2.37205351,2618.6,2618.5,0.00571766]
[1748571753087,1.2956,2618.6,2618.5,0.00571766]
[1748571755090,4.179,2618.7,2618.5,0.00571766]
[1748571755487,1.2957,2619.0,2618.5,3.21351766]
[1748571755686,0.6505,2619.1,2618.6,1.2155]
[1748571755888,0.6505,2619.1,2618.6,1.8406]
[1748571756192,0.6505,2619.1,2618.8,3.2078]
[1748571756382,0.6505,2619.1,2618.9,1.2155]
[1748571758691,3.51621839,2619.6,2618.9,1.2155]
[1748571758692,7.3818,2619.6,2618.9,1.2155]
[1748571758901,1.3164,2619.5,2618.9,1.2155]
[1748571759393,1.3161,2619.3,2618.9,1.2155]
[1748571759591,1.3161,2619.3,2618.8,3.2078]
[1748571759991,4.174,2619.2,2618.8,3.2078]
[1748571760593,4.174,2619.2,2618.9,1.3274]
[1748571760990,5.6445,2619.4,2618.9,1.3274]
[1748571761394,0.1908,2619.4,2618.9,1.3274]
[1748571762293,0.1908,2619.4,2619.1,3.2078]
[1748571762488,0.1908,2619.4,2619.2,1.3274]
[1748571763193,0.1908,2619.4,2619.2,1.9847]
[1748571763695,0.1908,2619.4,2619.3,1.2862]
[1748571766584,0.1908,2619.4,2619.2,0.6573]
[1748571766795,0.1908,2619.4,2619.1,3.2078]
[1748571767398,1.8794,2619.3,2619.1,3.2078]
[1748571769698,0.1908,2619.2,2619.1,3.2078]
[1748571771098,1.2670983,2619.2,2619.1,3.2078]
[1748571771295,0.1908,2619.2,2619.1,3.2078]
[1748571771801,1.4248,2619.2,2619.1,3.2078]
[1748571772098,2.5011102,2619.2,2618.7,1.8425]
[1748571772294,1.0763102,2619.1,2618.9,3.2078]
[1748571772496,0.1908,2619.2,2618.9,3.2078]
[1748571772696,0.1908,2619.2,2619.0,1.3432]
[1748571773102,0.1908,2619.2,2619.0,6.3432]
[1748571773300,3.2078,2620.1,2619.0,10.5162]
[1748571773493,1.07652515,2619.8,2619.5,3.2078]
[1748571773695,3.2078,2620.1,2619.6,1.3432]
[1748571773903,1.07652124,2619.8,2619.6,1.3432]
[1748571774101,1.2459,2620.2,2619.6,2.0087]
[1748571774603,1.2459,2620.2,2619.7,1.3432]
[1748571775004,1.2459,2620.2,2619.8,3.2078]
[1748571775203,0.19651766,2619.9,2619.8,3.2078]
[1748571778597,0.19651766,2619.9,2619.7,1.3432]
[1748571779305,0.19651766,2619.9,2619.5,3.2078]
[1748571779502,1.2873,2619.8,2619.5,3.2078]
[1748571779707,0.65,2619.7,2619.5,3.2078]
[1748571780401,1.9373,2619.7,2619.5,3.2078]
[1748571780805,0.65,2619.7,2619.5,3.2078]
[1748571780999,0.65,2619.7,2619.6,1.276]
[1748571781208,0.19651766,2619.9,2619.6,1.276]
[1748571781812,0.19651766,2619.9,2619.7,0.6423]
[1748571782105,0.19651766,2619.9,2619.8,4.4377]
[1748571784406,0.19651766,2619.9,2619.8,3.2078]
[1748571784707,0.19651766,2619.9,2619.5,4.4818]
[1748571784909,1.8456,2619.8,2619.5,4.4818]
[1748571785102,1.8456,2619.8,2619.5,3.2078]
[1748571786209,1.07631515,2619.7,2619.5,3.2078]
[1748571786411,1.8779,2619.6,2619.5,3.2078]
[1748571787112,0.653,2619.6,2619.5,3.2078]
[1748571788212,1.72985744,2619.6,2619.5,3.2078]
[1748571788612,1.8764,2619.8,2619.5,3.2078]
[1748571788813,1.07678155,2619.7,2619.6,1.3335]
[1748571789011,0.19651766,2619.9,2619.6,1.3335]
[1748571789309,0.19651766,2619.9,2619.6,1.9428]
[1748571789708,0.19651766,2619.9,2619.7,1.3335]
[1748571790714,0.19651766,2619.9,2619.8,3.2078]
[1748571790915,0.19651766,2619.9,2619.8,7.9983]
[1748571791111,0.19651766,2619.9,2619.8,14.2671]
[1748571792309,4.5465,2621.0,2619.8,14.2671]
[1748571792509,3.2078,2621.4,2620.8,3.2078]
[1748571792710,1.07597662,2621.3,2620.9,2.5569]
[1748571792915,1.3387,2621.7,2620.9,2.5569]
[1748571793110,1.07587759,2621.6,2620.9,2.5569]
[1748571793317,2.42029525,2621.5,2621.0,0.00571766]
[1748571793519,2.01241766,2621.5,2621.0,1.34841766]
[1748571793713,2.01241766,2621.5,2621.1,3.2078]
[1748571794016,2.01241766,2621.5,2621.2,1.3427]
[1748571794514,0.1907,2621.4,2621.2,1.3427]
[1748571794913,1.446,2621.4,2621.2,1.3427]
[1748571795722,1.446,2621.4,2621.0,0.00571766]
[1748571796019,0.6699,2621.3,2621.0,0.00571766]
[1748571796213,1.2553,2621.2,2621.0,0.00571766]
[1748571796618,0.6699,2621.3,2621.0,1.25381766]
[1748571796824,1.9799,2621.3,2621.0,1.25381766]
[1748571797120,1.9799,2621.3,2621.0,0.00571766]
[1748571797509,3.2078,2621.2,2621.0,0.00571766]
[1748571797714,1.31,2621.1,2621.0,0.00571766]
[1748571799320,3.2078,2621.2,2621.0,0.00571766]
[1748571799824,4.5374,2621.2,2621.0,0.00571766]
[1748571801616,1.3296,2621.2,2621.0,0.00571766]
[1748571806526,3.2078,2621.1,2621.0,0.00571766]
[1748571806827,8.44240098,2621.1,2620.1,3.2078]
[1748571807035,3.2078,2620.8,2620.1,3.2078]
[1748571807324,1.9314,2620.7,2620.2,1.215]
[1748571807721,1.9314,2620.7,2620.2,1.22071766]
[1748571807919,1.9314,2620.7,2620.2,0.00571766]
[1748571808822,1.9314,2620.7,2620.2,1.30151766]
[1748571809330,6.0934,2620.7,2620.2,1.30151766]
[1748571809829,1.9314,2620.7,2620.2,1.30151766]
[1748571810225,0.6563,2620.7,2620.2,1.30151766]
[1748571810931,1.8875,2620.7,2620.2,1.30151766]
[1748571812830,1.8875,2620.7,2620.2,0.00571766]
[1748571813032,1.0735583,2620.6,2620.2,0.00571766]
[1748571813230,2.4030583,2620.5,2620.2,0.00571766]
[1748571813430,1.984,2620.5,2620.2,0.00571766]
[1748571814528,1.07376357,2620.4,2620.2,0.00571766]
[1748571814822,1.3295,2620.3,2620.2,0.00571766]
[1748571818738,2.40476163,2620.3,2620.2,0.00571766]
[1748571819529,3.21351766,2621.5,2620.2,12.36751766]
[1748571819729,3.21351766,2621.5,2620.4,3.2078]
[1748571819933,1.8916,2621.3,2620.7,3.2078]
[1748571820131,1.8916,2621.3,2620.8,1.9821]
[1748571821231,1.8916,2621.3,2620.8,2.6821]
[1748571822138,0.00571766,2621.5,2621.0,3.2078]
[1748571822334,0.00571766,2621.5,2621.1,1.3238]
[1748571822638,0.1907,2621.4,2620.8,0.6357]
[1748571822939,2.1363,2621.4,2620.9,1.3238]
[1748571828241,0.8274,2621.4,2621.0,3.2078]
[1748571828437,0.8274,2621.4,2620.9,1.3238]
[1748571828438,0.1907,2621.4,2621.3,3.2078]
[1748571828944,0.1907,2621.4,2621.3,3.9078]
[1748571829636,0.1907,2621.4,2621.3,3.2078]
[1748571830538,0.1907,2621.4,2621.3,5.0425]
[1748571836644,0.1907,2621.4,2621.3,10.0425]
[1748571837349,0.1907,2621.4,2621.3,5.0425]
[1748571837845,0.1907,2621.4,2621.3,10.0425]
[1748571838451,0.1907,2621.4,2621.3,5.0425]
[1748571838947,4.7711,2622.2,2621.3,10.0425]
[1748571839144,4.7711,2622.2,2621.9,3.2078]
[1748571839450,4.7711,2622.2,2622.0,1.261]
[1748571839451,0.6181,2622.2,2622.0,1.261]
[1748571840651,1.9219,2622.2,2621.9,3.2078]
[1748571841153,0.1906,2622.1,2621.9,3.2078]
[1748571841552,0.1906,2622.1,2621.9,4.4688]
[1748571842952,1.4053,2622.1,2621.9,4.4688]
[1748571843155,0.1906,2622.1,2621.9,4.4688]
[1748571843849,0.00571766,2622.4,2621.9,8.6208]
[1748571844053,0.00571766,2622.4,2622.3,3.2078]
[1748571845150,0.00571766,2622.4,2621.8,7.35851766]
[1748571845355,0.00571766,2622.4,2621.8,3.21351766]
[1748571845855,0.00571766,2622.4,2621.8,4.50321766]
[1748571846153,0.66761766,2622.4,2621.8,4.50321766]
[1748571846349,1.9358,2622.3,2621.8,4.50321766]
[1748571846548,1.9358,2622.3,2621.8,3.21351766]
[1748571848854,5.1436,2622.3,2621.8,3.21351766]
[1748571849153,1.06895329,2622.2,2621.8,3.21351766]
[1748571849350,1.2959,2622.1,2621.8,3.21351766]
[1748571851861,0.6344,2622.3,2621.8,3.21351766]
[1748571852060,0.6344,2622.3,2621.9,1.3446]
[1748571852360,1.8986,2622.3,2621.9,1.3446]
[1748571853257,1.8986,2622.3,2621.8,3.21351766]
[1748571853555,1.06979286,2622.2,2621.8,3.21351766]
[1748571853760,1.2642,2622.1,2621.8,3.21351766]
[1748571856364,1.07061306,2622.0,2621.8,3.21351766]
[1748571856567,1.2642,2622.1,2621.8,3.21351766]
[1748571856965,1.07066077,2622.0,2621.8,3.21351766]
[1748571857164,1.2642,2622.1,2621.8,3.21351766]
[1748571857466,1.07101367,2622.0,2621.8,3.21351766]
[1748571857770,1.2642,2622.1,2621.8,3.21351766]
[1748571857969,1.8564,2621.9,2621.8,3.21351766]
[1748571858667,0.6436,2621.9,2621.8,3.21351766]
[1748571860763,1.71554248,2621.9,2621.8,3.21351766]
[1748571862266,1.07194248,2621.9,2621.8,3.21351766]
[1748571862474,0.1906,2622.0,2621.8,3.21351766]
[1748571862769,0.1906,2622.0,2621.9,1.3258]
[1748571862975,0.1906,2622.0,2621.9,1.9358]
[1748571871082,0.1906,2622.0,2621.9,6.9358]
[1748571871279,0.00571766,2622.4,2621.9,6.9358]
[1748571871574,0.00571766,2622.4,2622.3,3.2078]
[1748571879292,0.00571766,2622.4,2622.3,4.5027]
[1748571882388,0.00571766,2622.4,2622.3,3.2078]
[1748571895097,0.6661,2622.9,2622.3,8.2078]
[1748571895300,1.3172,2623.2,2622.8,3.2078]
[1748571895498,1.09014031,2623.1,2622.9,1.2964]
[1748571895696,1.09014031,2623.0,2622.9,1.9149]
[1748571895896,1.09014031,2623.1,2622.9,1.9149]
[1748571896096,1.09014031,2623.0,2622.9,1.9149]
[1748571897006,1.3172,2623.2,2622.9,1.9149]
[1748571897199,1.08997769,2623.1,2622.9,1.9149]
[1748571897396,1.3172,2623.2,2622.9,1.9149]
[1748571898299,1.2387,2623.1,2622.8,3.2078]
[1748571898602,1.2387,2623.1,2622.5,7.3408]
[1748571899700,1.08976679,2623.0,2622.5,7.3408]
[1748571900001,1.2387,2622.9,2622.5,7.3408]
[1748571900203,2.32846679,2622.9,2622.5,7.3408]
[1748571900399,1.2387,2622.9,2622.5,7.3408]
[1748571900706,1.2387,2622.9,2622.5,3.2078]
[1748571906508,8.5675,2622.9,2622.2,3.2078]
[1748571910411,3.2078,2622.6,2621.8,0.00571766]
[1748571910610,6.0677,2622.5,2621.8,0.00571766]
[1748571910910,6.7267,2622.5,2621.8,0.00571766]
[1748571911606,1.08927815,2622.4,2621.8,0.00571766]
[1748571911812,2.39487815,2622.3,2621.8,0.00571766]
[1748571912114,1.08927815,2622.2,2621.8,1.25201766]
[1748571912414,1.3056,2622.2,2622.0,3.2078]
[1748571913112,5.4211,2622.5,2622.0,3.2078]
[1748571913413,5.4211,2622.5,2622.1,1.2169]
[1748571913414,1.08906642,2622.4,2622.1,1.2169]
[1748571913612,1.08906642,2622.3,2622.1,1.2169]
[1748571913911,1.08906642,2622.2,2622.1,1.2169]
[1748571914506,1.08906642,2622.2,2622.0,3.2078]
[1748571914712,1.08880901,2622.1,2622.0,3.2078]
[1748571914911,1.71790901,2622.1,2622.0,3.2078]
[1748571916013,1.2583,2622.4,2622.0,3.2078]
[1748571916204,1.08861649,2622.3,2622.1,1.2374]
[1748571916410,1.08861649,2622.2,2622.0,3.2078]
[1748571916611,1.08854443,2622.1,2622.0,3.2078]
[1748571918313,0.6211,2622.4,2622.0,3.2078]
[1748571918511,1.08828176,2622.3,2622.1,1.2709]
[1748571918712,0.6211,2622.4,2622.1,1.2709]
[1748571918917,1.08826695,2622.3,2622.1,1.2709]
[1748571919110,0.6211,2622.4,2622.1,1.2709]
[1748571919312,1.08826567,2622.3,2622.1,1.2709]
[1748571919517,0.6211,2622.4,2622.1,1.9431]
[1748571919714,1.08823817,2622.3,2622.1,1.9431]
[1748571919916,0.6211,2622.4,2622.1,1.9431]
[1748571920116,1.08823549,2622.3,2622.1,1.9431]
[1748571920317,1.85,2622.4,2622.0,3.2078]
[1748571920611,1.08825163,2622.3,2622.0,3.2078]
[1748571920822,1.2289,2622.3,2622.0,3.2078]
[1748571921021,1.08827266,2622.2,2622.1,1.2709]
[1748571921414,1.2289,2622.3,2622.1,1.2709]
[1748571922014,0.6211,2622.4,2622.1,1.2709]
[1748571922217,1.0882588,2622.3,2622.1,1.9397]
[1748571922419,0.6211,2622.4,2622.2,1.2846]
[1748571922623,1.08824219,2622.3,2622.2,1.2846]
[1748571925219,1.08830406,2622.3,2622.2,1.2846]
[1748571926227,0.6211,2622.4,2622.2,1.2846]
[1748571926427,1.08925719,2622.3,2622.2,1.2846]
[1748571928835,4.122,2622.7,2622.2,1.2846]
[1748571929031,1.09039986,2622.6,2622.4,3.2078]
[1748571929333,1.09039986,2622.5,2622.4,3.2078]
[1748571929528,1.09032754,2622.5,2622.4,3.2078]
[1748571931436,1.28092754,2622.5,2622.4,3.2078]
[1748571932030,1.28092754,2622.5,2622.2,1.2846]
[1748571932229,0.1906,2622.5,2622.4,3.2078]
[1748571932937,0.1906,2622.5,2622.1,3.8766]
[1748571933129,0.6279,2622.4,2622.1,3.8766]
[1748571933435,1.09023443,2622.3,2622.2,1.2151]
[1748571933934,1.09065585,2622.3,2622.2,1.2151]
[1748571934130,1.09065585,2622.3,2622.1,3.2078]
[1748571934335,1.73335585,2622.3,2622.1,3.2078]
[1748571934536,1.09065585,2622.2,2622.1,3.2078]
[1748571934731,1.09065585,2622.3,2622.1,3.2078]
[1748571934936,1.09065585,2622.2,2622.1,3.2078]
[1748571936224,1.09065585,2622.3,2622.1,3.2078]
[1748571936532,1.73335585,2622.3,2622.1,3.2078]
[1748571936734,1.09065585,2622.2,2622.1,3.2078]
[1748571937931,0.6427,2622.3,2622.1,3.2078]
[1748571938231,1.09330538,2622.2,2622.1,3.2078]
[1748571942334,1.09334354,2622.2,2622.1,3.2078]
[1748571942726,0.1906,2622.5,2622.1,3.2078]
[1748571942925,1.09331635,2622.4,2622.1,3.2078]
[1748571943129,1.09331635,2622.3,2622.1,3.2078]
[1748571943431,0.1906,2622.5,2622.1,3.2078]
[1748571943631,1.09326401,2622.4,2622.1,3.2078]
[1748571943935,1.09326401,2622.3,2622.1,3.2078]
[1748571944138,0.1906,2622.5,2622.1,3.2078]
[1748571944436,1.09326483,2622.4,2622.1,3.2078]
[1748571944635,1.09326483,2622.3,2622.1,3.2078]
[1748571944936,0.1906,2622.5,2622.1,3.2078]
[1748571945137,1.09330133,2622.4,2622.1,3.2078]
[1748571945436,1.09330133,2622.3,2622.1,3.2078]
[1748571945650,1.09330133,2622.2,2622.1,3.2078]
[1748571946632,1.09341853,2622.2,2622.1,3.2078]
[1748571950934,1.09352327,2622.2,2622.1,3.2078]
[1748571952642,1.28412327,2622.2,2622.1,3.2078]
[1748571955139,0.1906,2622.2,2622.1,3.2078]
[1748571955340,1.2841083,2622.2,2622.1,3.2078]
[1748571958645,1.2841083,2622.2,2621.8,0.00571766]
[1748571958948,3.5892083,2622.1,2621.8,0.00571766]
[1748571959150,1.0935083,2622.0,2621.8,0.00571766]
[1748571959446,1.2186,2622.0,2621.8,0.00571766]
[1748571959639,1.09356267,2621.9,2621.8,0.00571766]
[1748571960541,1.09356267,2621.9,2621.8,1.29461766]
[1748571961141,1.09356267,2621.9,2621.8,1.92101766]
[1748571961545,1.09356267,2621.9,2621.8,0.00571766]
[1748571962042,1.09356267,2621.9,2621.8,1.24171766]
[1748571962247,1.09339477,2621.9,2621.8,1.88561766]
[1748571962845,1.2771,2622.1,2621.8,1.88561766]
[1748571963047,1.2771,2622.1,2621.9,1.236]
[1748571963247,1.09350831,2622.0,2621.9,1.236]
[1748571963551,1.2771,2622.1,2621.9,1.236]
[1748571963745,2.6156,2622.1,2621.9,1.236]
[1748571964343,1.09348698,2622.0,2621.9,1.236]
[1748571965555,1.09348698,2622.0,2621.8,3.85741766]
[1748571965854,2.40948698,2622.0,2621.8,3.85741766]
[1748571966352,1.09348698,2621.9,2621.8,3.85741766]
[1748571969456,1.2771,2622.1,2621.8,3.85741766]
[1748571969661,1.09287066,2622.0,2621.9,1.3111]
[1748571970559,1.2771,2622.1,2621.9,1.3111]
[1748571970759,1.0928357,2622.0,2621.9,1.3111]
[1748571971362,1.0928357,2622.0,2621.8,3.85741766]